Cogmind - Beta 16.1 @@@ ROGUE MODE // 2026.02.20 @ 14:11:18 Player: Ceorik Result: Destroyed by S-27 Virus with Autogun Performance ------------- Evolutions (6) 3000 Regions Visited (8) 1600 Robots Destroyed (84) 420 Value Destroyed (3565) 3565 Prototype IDs (5) 100 Alien Tech Used (0) 0 Bonus (800) 800 TOTAL SCORE: 9485 Bonus ------- Registered with UFD 300 Met Optimus in HQ 500 Cogmind --------- Core Integrity 0/1150 Matter 198/300 Energy 55/100 System Corruption 11% Temperature Cool (0) Movement Core (600) Ox11 Location -4/Factory Parts ------- > --- POWER (2) -------- (None) > --- PROPULSION (4) --- (None) > --- UTILITY (9) ------ Large Storage Unit Advanced Signal Interpreter Improved Armor Integrity Analyzer Graphene Brace Improved Point Defense System System Restoration Module > --- WEAPON (4) ------- Micro-nuke Launcher > --- INVENTORY (15) --- Micro Fission Core Light Antimatter Reactor Improved Armor Integrity Analyzer Heavy Shock Bomb Launcher Advanced Datajack Peak State ------------ > --- POWER ------------ Improved Ion Engine Improved Deuterium Engine > --- PROPULSION ------- Flexi-carbon Leg Flexi-carbon Leg Myomer Leg Myomer Leg > --- UTILITY ---------- Large Storage Unit Improved Trap Scanner Advanced Signal Interpreter Improved Melee Analysis Suite Improved Armor Integrity Analyzer Microactuators Microactuators Improved Medium Armor Plating Graphene Brace > --- WEAPON ----------- Micro-nuke Launcher Katana Katana Companion Sword > --- INVENTORY -------- Micro Fission Core Micro Fission Core Light Antimatter Reactor Antigrav System Improved Armor Integrity Analyzer Improved Medium Armor Plating Improved Point Defense System Heavy Shock Bomb Launcher Advanced Datajack Great Maul [Rating: 95] Favorites ----------- Power Improved Deuterium Engine Engine Improved Deuterium Engine Power Core Micro Fission Core Reactor Cold Fusion Reactor Propulsion Light Treads Treads Light Treads Leg Flexi-carbon Leg Wheel Overtuned Huge Scrapsphere Hover Unit Antigrav System Utility Large Storage Unit Device Microactuators Storage Large Storage Unit Processor Advanced Signal Interpreter Protection Hardened Light Armor Plating Weapon Katana Energy Gun EM Pulse Gun Ballistic Gun Assault Rifle Launcher Grenade Launcher Special Weapon Junk Cannon Impact Weapon Flail Slashing Weapon Katana Build | -11 -10 -10 -8 -6 -5 -5 -5 -4 ------- Run | Yrd Mat Sub Scr Fac Fac Upp Upp Fac Slots Evolved 12 | . . . . 8 2 . . 2 Power 1 | . . . . . 1 . . . Propulsion 2 | . . . . 2 . . . . Utility 7 | . . . . 4 1 . . 2 Weapon 2 | . . . . 2 . . . . Parts Attached 67 | 5 5 1 5 13 9 1 . 28 Power 9 | 1 . . 1 3 1 . . 3 Engine 7 | 1 . . 1 2 1 . . 2 Core 1 | . . . . . . . . 1 Reactor 1 | . . . . 1 . . . . Propulsion 12 | . 2 . 1 2 . . . 7 Treads 3 | . 2 . 1 . . . . . Leg 4 | . . . . . . . . 4 Wheel 2 | . . . . 2 . . . . Hover 3 | . . . . . . . . 3 Flight . | . . . . . . . . . Utility 33 | 1 3 . 1 6 5 1 . 16 Device 15 | . 2 . . 3 3 . . 7 Storage 4 | 1 1 . . . . . . 2 Processor 6 | . . . . 2 . 1 . 3 Hackware . | . . . . . . . . . Protection 8 | . . . 1 1 2 . . 4 Artifact . | . . . . . . . . . Weapon 13 | 3 . 1 2 2 3 . . 2 Energy Gun 1 | 1 . . . . . . . . Energy Cannon . | . . . . . . . . . Ballistic Gun 4 | 2 . . . 1 1 . . . Ballistic Cannon . | . . . . . . . . . Launcher 2 | . . 1 . . . . . 1 Special Weapon 1 | . . . 1 . . . . . Impact Weapon 2 | . . . 1 . . . . 1 Slashing Weapon 3 | . . . . 1 2 . . . Piercing Weapon . | . . . . . . . . . Special Melee Weapon . | . . . . . . . . . Unidentified Prototypes 5 | . . . 1 3 . . . 1 Parts Lost 31 | . 1 . . . 4 . . 26 Power 5 | . . . . . 1 . . 4 Propulsion 7 | . . . . . . . . 7 Utility 12 | . 1 . . . 1 . . 10 Weapon 7 | . . . . . 2 . . 5 Highest Loss Streak 21 | . 1 . . . 3 . . 21 To Critical Strikes . | . . . . . . . . . Average Backups 9 | 2 6 12 12 5 4 5 5 7 Power . | . . 1 . . . 1 1 1 Propulsion . | 1 . 1 1 . . . . . Utility 4 | . 2 6 7 1 3 3 4 3 Weapon 2 | 1 2 3 3 2 1 . . . Tool/Special . | . . . . . . . . . Unused Backups 33 | . . . 15 5 . 2 . 11 Power 5 | . . . 1 . . 1 . 3 Propulsion 3 | . . . 1 . . . . 2 Utility 15 | . . . 8 3 . 1 . 3 Weapon 9 | . . . 5 2 . . . 2 Tool/Special 1 | . . . . . . . . 1 Average Slot Usage (%) 87 | . 92 100 91 72 69 76 76 87 Engine 10 | . 14 14 14 3 1 5 5 6 Treads 17 | . 27 28 28 . . . . . Leg 1 | . . . . . . . . 14 Wheel 2 | . . . . 12 11 11 11 2 Device 11 | . 7 14 7 12 19 18 17 22 Storage 9 | . 14 14 14 . . . . 3 Processor 3 | . . . . 7 9 10 11 11 Protection 5 | . . . 6 11 4 5 5 5 Ballistic Gun 6 | . 26 14 2 5 4 . . . Launcher 3 | . . 9 5 . . . . . Special Weapon 4 | . . . 8 6 2 . . . Impact Weapon 1 | . . . 3 . . . . 1 Slashing Weapon 5 | . . . . 5 10 23 23 15 Peak Build Rating 95 | 4 8 8 27 74 81 77 76 95 Average Rating 38 | 3 6 8 20 71 76 76 76 85 On Entrance 38 | . 4 8 8 27 74 77 76 76 Avg Prop Armor Cover (%) 5 | . . . . . 6 . . 4 Naked Turns . | . . . . . . . . . Heaviest Build 64 | 13 30 31 49 46 49 40 37 64 Greatest Support 90 | 3 40 40 40 40 40 40 40 90 Greatest Overweight (x) 15 | 4 . . 1 1 1 . . 15 Average Overweight (x) . | 2 . . . . . . . . Largest Inventory Capacity 15 | 8 15 15 15 15 5 5 5 15 Average Capacity 11 | 7 12 15 15 5 5 5 5 11 Most Carried 15 | 4 12 14 15 13 5 5 5 15 Average Carried 9 | 2 6 12 13 5 4 4 5 7 Final Capacity 15 | 8 15 15 15 5 5 5 5 15 Final Carried 15 | 3 11 14 15 5 5 5 5 5 Scrap Suit Usage (%) 25 | . . . . 99 96 100 100 21 Parts Cannibalized 10 | . . . . 3 5 . . 2 Class Distribution -------------------- 64% | Mutant 25% | Scrapper 9% | Scavenger-Gladiator Dominant Class ---------------- Mutant | -10/Materials Mutant | -10/Subcaves Mutant | -8/Scraptown Scrapper | -6/Factory Scrapper | -5/Factory Scrapper | -5/Upper Caves Scrapper | -5/Upper Caves Scavenger-Gladiator | -4/Factory Resources | -11 -10 -10 -8 -6 -5 -5 -5 -4 ----------- Run | Yrd Mat Sub Scr Fac Fac Upp Upp Fac Matter Collected 1144 | 199 184 30 50 257 133 10 . 281 Remotely . | . . . . . . . . . Salvage Created 4619 | . 125 . 172 1149 783 120 114 2156 Parts 186 | . 6 . 4 34 33 7 8 94 Haulers Intercepted . | . . . . . . . . . Recyclers Shooed 1 | . . . . . . . . 1 Parts Field Recycled . | . . . . . . . . . Retrieved Matter . | . . . . . . . . . Parts Self-Destructed 17 | . . . . . . 8 9 . Prevented 4 | . . . . . . 4 . . Parts Restored . | . . . . . . . . . Kills | -11 -10 -10 -8 -6 -5 -5 -5 -4 ------- Run | Yrd Mat Sub Scr Fac Fac Upp Upp Fac Combat Hostiles Destroyed 67 | . 5 . 3 12 13 3 5 26 Melee 39 | . . . . 1 7 3 5 23 Guns 7 | . 5 . . 2 . . . . Cannons 7 | . . . . 3 4 . . . AOE 2 | . . . . . . . . 2 Classes Destroyed 15 | . 2 . 2 3 2 . . 6 Worker 4 | . . . . . . . . 4 Builder 1 | . . . . . . . . 1 Tunneler 1 | . . . . . . . . 1 Recycler 9 | . . . . 4 1 . . 4 Mechanic 1 | . . . . . . . . 1 Operator 1 | . . . . . . . . 1 Swarmer 14 | . 3 . . . . 2 5 4 Cutter 5 | . . . . . 5 . . . Grunt 17 | . 2 . . 6 5 . . 4 Brawler 1 | . . . . . 1 . . . Sentry 10 | . . . . 3 2 1 . 4 Hunter 2 | . . . . . . . . 2 Programmer 15 | . . . . 3 . . . 12 Federalist 1 | . . . 1 . . . . . Scrapper 2 | . . . 2 . . . . . Best Kill Streak 7 | . 3 . 2 7 5 3 5 6 Combat Bots Only 5 | . 3 . 2 4 4 3 5 5 Max Kills in Single Turn 2 | . 1 . 1 1 1 1 2 2 Gunslinging . | . . . . . . . . . Exploded 2 | . . . . . . . . 2 Melee 2 | . . . . 1 1 1 2 1 Uniques/NPCs Destroyed . | . . . . . . . . . Combat | -11 -10 -10 -8 -6 -5 -5 -5 -4 -------- Run | Yrd Mat Sub Scr Fac Fac Upp Upp Fac Hostile Shots Fired 575 | . 41 . 15 68 94 9 11 337 Missed 182 | . 15 . 5 26 25 4 2 105 Hits 393 | . 26 . 10 42 69 5 9 232 Melee 17 | . . . . . 17 . . . Projectile 376 | . 26 . 10 42 52 5 9 232 AOE 4 | . . . . . 2 . . 2 Critical Strikes 17 | . . . . 2 8 . . 7 Actively Blocked 7 | . . . . . . . . 7 Part Disruptions 3 | . . . . . . . . 3 Damage Taken 7496 | . 266 . 149 532 1716 77 144 4612 Core 1638 | . 66 . 38 68 266 . 50 1150 Absorbed by Shields . | . . . . . . . . . Redirected to Shielding 8 | . . . . 8 . . . . Regen/Repaired (Parts) 84 | . . . . 30 39 . . 15 Core Remaining (%) 79 | 100 . . 58 92 . . 68 . Volleys Fired 70 | . 20 . 5 28 13 . . 4 Largest 2 | . 2 . 1 2 2 . . 1 Hottest 60 | . 60 . . 30 33 . . 49 Shots Fired 128 | . 40 . 5 53 26 . . 4 Gun 80 | . 40 . . 27 13 . . . Cannon . | . . . . . . . . . Launcher 4 | . . . . . . . . 4 Special 44 | . . . 5 26 13 . . . Kinetic 78 | . 38 . . 27 13 . . . Thermal . | . . . . . . . . . Explosive 4 | . . . . . . . . 4 Electromagnetic 2 | . 2 . . . . . . . Impact 44 | . . . 5 26 13 . . . Robot Hit Streak 18 | . 10 . 1 14 18 . . . Robot Miss Streak 3 | . 3 . 2 2 3 . . 1 Penetration Max 1 | . . . . . 1 . . . Secondary Targets . | . . . . . . . . . Shots Hit Robots 270 | . 25 . 2 48 54 9 8 124 Core Hits 99 | . 10 . . 11 18 3 4 53 Critical Kills 3 | . . . . 2 1 . . . Critical Parts Destroyed 17 | . . . . 8 4 . . 5 Critical Strikes 30 | . . . . 10 7 1 . 12 Destroy 5 | . . . . 4 1 . . . Smash 15 | . . . . 6 4 . . 5 Sever 8 | . . . . . 2 1 . 5 Melee Attacks 249 | . . . . 13 45 10 10 171 Impact 26 | . . . . . . . . 26 Slashing 223 | . . . . 13 45 10 10 145 Piercing . | . . . . . . . . . Sneak Attacks 19 | . . . . 2 1 . 2 14 Combat Hostiles 2 | . . . . . . . 2 . Follow-up Attacks 61 | . . . . . 11 3 4 43 Damage Inflicted 11727 | . 274 . 203 2379 2333 336 353 5849 Guns 938 | . 274 . . 422 242 . . . Cannons . | . . . . . . . . . Explosions 557 | . . . . . . . . 557 Melee 7787 | . . . . 417 1389 336 353 5292 Ramming . | . . . . . . . . . Kinetic 922 | . 258 . . 422 242 . . . Thermal . | . . . . . . . . . Explosive 557 | . . . . . . . . 557 Electromagnetic 16 | . 16 . . . . . . . Impact 3434 | . . . 203 1540 702 . . 989 Slashing 6798 | . . . . 417 1389 336 353 4303 Piercing . | . . . . . . . . . Highest Corruption 11 | . . . . 1 . . . 11 Average Corruption 2 | . . . . 1 . . . 3 Corruption Purged 7 | . . . . . . . . 7 Corruption Blocked . | . . . . . . . . . Effects 12 | . . . . 5 . . . 7 Message Errors 6 | . . . . 3 . . . 3 Matter Fused 3 | . . . . 2 . . . 1 Energy Discharges 2 | . . . . . . . . 2 Parts Fused 1 | . . . . . . . . 1 Overload Shots . | . . . . . . . . . Overflow Damage 2085 | . . . 78 599 404 37 45 922 Projectiles 908 | . . . 78 549 281 . . . Explosions 77 | . . . . . . . . 77 Melee 1100 | . . . . 50 123 37 45 845 Knockbacks 18 | . . . 2 7 4 . . 5 Impact 17 | . . . 2 7 4 . . 4 Kinetic . | . . . . . . . . . Secondary 1 | . . . . . . . . 1 Self-Inflicted Damage 86 | . . . . . . . . 86 Shots 1 | . . . . . . . . 1 Rammed . | . . . . . . . . . Targets Rammed . | . . . . . . . . . Kicked . | . . . . . . . . . Crushed . | . . . . . . . . . Highest Temperature 26 | . 12 . 13 26 13 . . . Average Temperature 10 | . 6 . 11 15 13 . . . Received Heat Transfer 973 | . 75 . 78 159 478 . . 183 Siege Activations . | . . . . . . . . . Martial Activations . | . . . . . . . . . Shielding Activations . | . . . . . . . . . Robots Disrupted 1 | . . . . . . . . 1 Combat Hostiles . | . . . . . . . . . Robots Corrupted 13 | . . . 3 7 1 . . 2 Combat Hostiles 11 | . . . 3 6 1 . . 1 Parts Fried 26 | . . . 7 10 3 . . 6 Impact Corruptions 36 | . . . 4 13 7 . . 12 Robots Melted . | . . . . . . . . . Combat Hostiles . | . . . . . . . . . Parts Melted . | . . . . . . . . . Heat Transferred . | . . . . . . . . . Parts Sabotaged . | . . . . . . . . . Parts Stolen . | . . . . . . . . . Parts Stripped . | . . . . . . . . . Power Chain Reactions . | . . . . . . . . . Alert | -11 -10 -10 -8 -6 -5 -5 -5 -4 ------- Run | Yrd Mat Sub Scr Fac Fac Upp Upp Fac Maximum Alert Level 1 | . . . . . 1 . . . Low Security (%) 98 | 100 100 . . 100 86 . . 100 Level 1 1 | . . . . . 13 . . . Level 2 . | . . . . . . . . . Level 3 . | . . . . . . . . . Level 4 . | . . . . . . . . . Level 5 . | . . . . . . . . . High Security . | . . . . . . . . . Max Security . | . . . . . . . . . Peak Influence 296 | . 75 . . 198 296 . . 178 Initial 73 | . . . . . 73 . . 56 Average 62 | . 14 . . 83 146 . . 84 Influence Increases 2216 | . 243 . . 388 433 165 110 877 Destroy 0b10 Robot/C 1280 | . 100 . . 240 260 60 100 520 Destroy 0b10 Robot/NC 85 | . . . . 20 5 . . 60 Destroy Leader 290 | . 20 . . 80 40 . 10 140 Successful Hack 43 | . 3 . . 12 . . . 28 Disable Machine 45 | . . . . 15 30 . . . Destroy Structure 68 | . . . . 6 8 . . 54 Partial Spotted 60 | . . . . 15 45 . . . Lose Combat Pursuer 345 | . 120 . . . 45 105 . 75 Influence Decreases 2068 | . 236 7 . 238 287 461 20 819 Entered New Map 225 | . . 4 . . 77 110 . 34 Time Decay 1543 | . 236 3 . 238 170 351 20 525 Lost Part 300 | . . . . . 40 . . 260 Squads Dispatched 12 | . 1 . . 2 5 . . 4 Investigation 1 | . . . . 1 . . . . Extermination 4 | . . . . 1 . . . 3 Reinforcement 6 | . 1 . . . 4 . . 1 Assault . | . . . . . . . . . Garrison 1 | . . . . . 1 . . . Intercept . | . . . . . . . . . Searches Triggered . | . . . . . . . . . Construction Impeded . | . . . . . . . . . Haulers Reinforced 1 | . . . . . . . . 1 Active Scanning Responses . | . . . . . . . . . Cargo Convoy Interrupts . | . . . . . . . . . Stealth | -11 -10 -10 -8 -6 -5 -5 -5 -4 --------- Run | Yrd Mat Sub Scr Fac Fac Upp Upp Fac Distress Signals 6 | . 2 . . 2 . . . 2 Communications Jammed . | . . . . . . . . . Distress Signals . | . . . . . . . . . Times Spotted 132 | . 22 . 11 18 20 9 3 49 Peak Tracking Total 9 | . 6 . 4 3 8 7 3 9 Tactical Retreats 14 | . 6 . . . 2 3 . 3 Traps | -11 -10 -10 -8 -6 -5 -5 -5 -4 ------- Run | Yrd Mat Sub Scr Fac Fac Upp Upp Fac Traps Triggered 1 | . . . . . 1 . . . Indirectly . | . . . . . . . . . Trap Hack Attempts . | . . . . . . . . . Triggered . | . . . . . . . . . Disarmed . | . . . . . . . . . Reprogrammed . | . . . . . . . . . Reused . | . . . . . . . . . Traps Extracted . | . . . . . . . . . Installed . | . . . . . . . . . Triggered . | . . . . . . . . . Machines | -11 -10 -10 -8 -6 -5 -5 -5 -4 ---------- Run | Yrd Mat Sub Scr Fac Fac Upp Upp Fac Machines Disabled 4 | . . . 1 1 2 . . . Max in Single Turn 1 | . . . 1 1 1 . . . Machines Repaired . | . . . . . . . . . Machines Dismantled . | . . . . . . . . . Machines Sabotaged . | . . . . . . . . . Overloaded Fab Kills . | . . . . . . . . . Hacking | -11 -10 -10 -8 -6 -5 -5 -5 -4 --------- Run | Yrd Mat Sub Scr Fac Fac Upp Upp Fac Machines Accessed 21 | . 4 . 5 2 2 1 . 7 Terminals 6 | . 4 . . . 1 . . 1 Fabricators 2 | . . . . . . . . 2 Repair Stations 2 | . . . . . . . . 2 Recycling Units 1 | . . . . . . . . 1 Scanalyzers 2 | . . . . 1 . . . 1 Garrison Access 2 | . . . . 1 1 . . . Total Hacks 78 | . 21 . 32 4 2 1 . 18 Successful 51 | . 9 . 32 2 . 1 . 7 Failed 26 | . 12 . . 2 2 . . 10 Catastrophic 6 | . 2 . . . 1 . . 3 Database Lockouts 1 | . . . . . . . . 1 Manual 27 | . 18 . . . 1 . . 8 Terminals 24 | . 21 . . . 1 . . 2 Fabricators 6 | . . . . . . . . 6 Repair Stations 5 | . . . . . . . . 5 Recycling Units 2 | . . . . . . . . 2 Scanalyzers 5 | . . . . 2 . . . 3 Garrison Access 3 | . . . . 2 1 . . . Terminal Hacks 35 | . 2 . 32 . . 1 . . Record 25 | . . . 25 . . . . . Robot Analysis 6 | . . . 6 . . . . . Open Door 2 | . . . 1 . . 1 . . Locate Traps 1 | . 1 . . . . . . . Dispatch Records 1 | . 1 . . . . . . . Fabricator Hacks 1 | . . . . . . . . 1 Network Status 1 | . . . . . . . . 1 Repair Station Hacks 1 | . . . . . . . . 1 Scan Component 1 | . . . . . . . . 1 Recycling Unit Hacks 1 | . . . . . . . . 1 Report Inventory 1 | . . . . . . . . 1 Scanalyzer 4 | . . . . 2 . . . 2 Retrieve Study 4 | . . . . 2 . . . 2 Garrison Access Hacks . | . . . . . . . . . Unauthorized Hacks 9 | . 7 . . . . . . 2 Terminals 7 | . 7 . . . . . . . Assimilate 3 | . 3 . . . . . . . Botnet 4 | . 4 . . . . . . . Fabricators 2 | . . . . . . . . 2 Fabnet 2 | . . . . . . . . 2 Repair Stations . | . . . . . . . . . Recycling Units . | . . . . . . . . . Scanalyzers . | . . . . . . . . . Garrison Access . | . . . . . . . . . Data Cores Recovered 1 | . . . . . . . . 1 Used . | . . . . . . . . . Hacking Detections 13 | . 4 . . 2 2 . . 5 Full Trace Events 1 | . . . . 1 . . . . Feedback Events . | . . . . . . . . . Feedback Blocked . | . . . . . . . . . Robot Schematics Acquired . | . . . . . . . . . Robots Built . | . . . . . . . . . Authchips . | . . . . . . . . . Time . | . . . . . . . . . Total Robot Build Rating . | . . . . . . . . . Part Schematics Acquired . | . . . . . . . . . Parts Built . | . . . . . . . . . Authchips . | . . . . . . . . . Time . | . . . . . . . . . Total Part Build Rating . | . . . . . . . . . Part Studies Acquired 4 | . . . . 2 . . . 2 Parts Repaired . | . . . . . . . . . Time . | . . . . . . . . . Parts Recycled . | . . . . . . . . . Recycled Matter . | . . . . . . . . . Retrieved Matter . | . . . . . . . . . Retrieved Components . | . . . . . . . . . Parts Scanalyzed . | . . . . . . . . . Part Schematics Acquired . | . . . . . . . . . Parts Damaged . | . . . . . . . . . Bothacking | -11 -10 -10 -8 -6 -5 -5 -5 -4 ------------ Run | Yrd Mat Sub Scr Fac Fac Upp Upp Fac Used RIF Installer . | . . . . . . . . . Robots Hacked . | . . . . . . . . . Non-combat . | . . . . . . . . . Combat . | . . . . . . . . . Robot Hacks Applied . | . . . . . . . . . Relay Couplers Released . | . . . . . . . . . Fabnet Peak Effective % . | . . . . . . . . . Robots Rewired . | . . . . . . . . . Allies Hacked . | . . . . . . . . . Hacks Repelled . | . . . . . . . . . Allies | -11 -10 -10 -8 -6 -5 -5 -5 -4 -------- Run | Yrd Mat Sub Scr Fac Fac Upp Upp Fac Total Allies . | . . . . . . . . . Largest Group . | . . . . . . . . . Highest-Rated Group . | . . . . . . . . . Highest-Rated Ally . | . . . . . . . . . Initial UFD Resources 29 | . . . . 24 27 27 27 29 Total Orders . | . . . . . . . . . Ally Attacks . | . . . . . . . . . Total Damage . | . . . . . . . . . Kills . | . . . . . . . . . Allies Corrupted . | . . . . . . . . . Allies Melted 3 | . . . 3 . . . . . Intel | -11 -10 -10 -8 -6 -5 -5 -5 -4 ------- Run | Yrd Mat Sub Scr Fac Fac Upp Upp Fac Active Infowar (turns) 6763 | . 808 567 2859 903 168 . . 1458 Terrain 3650 | . 224 567 2859 . . . . . Structural 584 | . 584 . . . . . . . Traps 2520 | . . . . 903 159 . . 1458 ECM 10 | . . . . . 9 . . 1 Robot Analysis Total 6 | . . . 6 . . . . . Derelict Logs Recovered 4 | . . 1 2 . . 1 . . Drone Launches . | . . . . . . . . . Drone Recoveries . | . . . . . . . . . Exploration | -11 -10 -10 -8 -6 -5 -5 -5 -4 ------------- Run | Yrd Mat Sub Scr Fac Fac Upp Upp Fac Turns Passed 11340 | 80 1605 567 5039 949 358 1197 42 1503 Spaces Moved 6562 | 41 585 342 2484 839 295 1007 48 921 Core 47 | 41 . . . . . . . 6 Treads 3411 | . 585 342 2484 . . . . . Legs 647 | . . . . . . . . 647 Wheels 2442 | . . . . 839 295 1007 48 253 Hover 15 | . . . . . . . . 15 Flight . | . . . . . . . . . Fastest Speed 50 | 50 160 160 160 70 70 70 70 70 Average Speed 139 | 169 160 160 198 79 76 70 70 113 Slowest Speed 800 | 250 160 160 240 80 80 70 70 800 Overloaded Moves . | . . . . . . . . . Propulsion Burnouts . | . . . . . . . . . Robots Hopped . | . . . . . . . . . Potential Cave-ins . | . . . . . . . . . Cave-ins Triggered . | . . . . . . . . . Exploration Rate (%) 34 | 4 55 11 92 25 7 89 6 20 Regions Visited 8 Branch Regions 4 Pre-discovered Areas 1 | . . . 1 . . . . . Known Exits Taken 4 | . . . . 1 1 1 1 . Unknown Exits Taken 4 | 1 1 1 1 . . . . . Scrap Searched 12 | . . . 8 . . 3 1 . Spaces Dug 14 | . . . . 2 2 . . 10 Terrain Destroyed 36 | . . . . 5 5 . . 26 Melee 14 | . . . . 2 2 . . 10 Projectile 6 | . . . . 3 3 . . . AOE 16 | . . . . . . . . 16 Terrain Rammed . | . . . . . . . . . Walls Destroyed . | . . . . . . . . . Machines Disabled . | . . . . . . . . . Actions | -11 -10 -10 -8 -6 -5 -5 -5 -4 --------- Run | Yrd Mat Sub Scr Fac Fac Upp Upp Fac Total 8528 | 52 1216 361 2595 1064 378 1496 52 1314 Wait 1498 | . 590 16 58 143 17 477 . 197 Move 6554 | 40 584 341 2483 838 294 1006 47 921 Hop . | . . . . . . . . . Pick Up 105 | 7 13 3 21 13 9 3 . 36 Fast Attach . | . . . . . . . . . Attach 57 | 4 4 . 3 10 8 . . 28 Detach . | . . . . . . . . . Swap 21 | 1 4 1 2 4 1 1 . 7 Drop 60 | . 1 . 23 15 4 3 . 14 Fire 70 | . 20 . 5 28 13 . . 4 Melee 163 | . . . . 13 32 6 5 107 Ram . | . . . . . . . . . Kick . | . . . . . . . . . Crush . | . . . . . . . . . Escape Stasis . | . . . . . . . . . Rewire . | . . . . . . . . . Trap . | . . . . . . . . . Miscellaneous . | . . . . . . . . . Route ------- -11/Scrapyard -10/Materials (discovered 3 exits: [*Mat] / [*Min] / [*Sub]) -10/Subcaves (discovered 2 exits: [*Mat] / *Scr) -8/Scraptown (discovered 2 exits: *Fac x2) -6/Factory -5/Factory -5/Upper Caves -5/Upper Caves -4/Factory (discovered 1 exit: Res) History --------- Turn | Location | Event 4 | -11/Scrapyard | Discovered new exit (range 15) 81 | -11/Scrapyard | Entered Materials 154 | -10/Materials | Discovered new exit (range 5) 309 | -10/Materials | Build established: Mutant 675 | -10/Materials | Discovered new exit (range 12) 723 | -10/Materials | Discovered new exit (range 8) 781 | -10/Materials | Derelicts attacked the area 1686 | -10/Materials | Entered Subcaves 1687 | -10/Subcaves | Approached by a straggling Scientist 1826 | -10/Subcaves | Scientist uncovered a shortcut to Scraptown 1989 | -10/Subcaves | A swath of the cavern ceiling suddenly collapsed 2088 | -10/Subcaves | Shifting Twisted Machinery released Sub. Monowheel 2096 | -10/Subcaves | Shifting Twisted Machinery released Sub. Shrapnel Launcher 2120 | -10/Subcaves | Discovered new exit (range 11) 2253 | -10/Subcaves | Entered Scraptown 2691 | -8/Scraptown | Discovered new exit (range 3) 2732 | -8/Scraptown | Scanned Subdweller tech in exchange for log data 2737 | -8/Scraptown | Learned Research terminal intel 2739 | -8/Scraptown | Learned location of Armory (-3) 2865 | -8/Scraptown | Heard Great Nut preacher, LISTEN AND RECITE! 2916 | -8/Scraptown | Visited UFD Registry 2916 | -8/Scraptown | Registered with UFD as "Plasmaguard" 2935 | -8/Scraptown | Visited TADAMA 3063 | -8/Scraptown | Guru changed UFD alias to "Technothruster" 3142 | -8/Scraptown | Visited Fellowship of the Rings 3195 | -8/Scraptown | Visited Bundlers 3317 | -8/Scraptown | Visited Assassins FH 3362 | -8/Scraptown | Visited Awakened 4151 | -8/Scraptown | Visited Modified Component R&D 4261 | -8/Scraptown | Visited LU-1G1's Boring Crew 4290 | -8/Scraptown | Visited Science Testing Area 4319 | -8/Scraptown | Visited Junk Cannon Lab 4338 | -8/Scraptown | Found Prototype Special Weapon 4343 | -8/Scraptown | Identified Junk Cannon 5135 | -8/Scraptown | Visited Junk Repository 5597 | -8/Scraptown | Found Scrap Suit 5692 | -8/Scraptown | Discovered new exit (range 5) 5845 | -8/Scraptown | Visited Sword Containment 5870 | -8/Scraptown | Found Prototype Slashing Weapon 5926 | -8/Scraptown | Visited Scrap Suit Storage 6029 | -8/Scraptown | Visited Supply Room 6094 | -8/Scraptown | Visited Chapter 10 6176 | -8/Scraptown | Visited Analyses Database 6722 | -8/Scraptown | Met Optimus 6722 | -8/Scraptown | Accepted into 0bPrime 6889 | -8/Scraptown | Civil war broke out across Scraptown 7120 | -8/Scraptown | Lost 3 allies 7179 | -8/Scraptown | Lost 3 allies 7286 | -8/Scraptown | Lost 4 allies 7292 | -8/Scraptown | Entered Factory 7292 | -6/Factory | Evolved 8 slots: Propulsion x2, Utility x4, Weapon x2 7297 | -6/Factory | Identified Companion Sword 7588 | -6/Factory | Build established: Scrapper 8177 | -6/Factory | Discovered new exit (range 8) 8240 | -6/Factory | Identified exit to Factory 8241 | -6/Factory | Entered another Factory area 8241 | -5/Factory | Evolved 2 slots: Power x1, Utility x1 8451 | -5/Factory | Lost 3 parts (1p1u1w) 8539 | -5/Factory | Garrison activated, responded to threat 8577 | -5/Factory | Discovered new exit (range 14) 8598 | -5/Factory | Identified exit to Upper Caves 8599 | -5/Factory | Entered Upper Caves 8772 | -5/Upper Caves | Encountered a Warlord checkpoint 8792 | -5/Upper Caves | Learned location of 1 exit from Factory 9041 | -5/Upper Caves | Attracted the attention of an 0b10 checkpoint 9216 | -5/Upper Caves | Attracted the attention of an 0b10 outpost 9792 | -5/Upper Caves | Discovered new exit (range 6) 9796 | -5/Upper Caves | Identified exit to Upper Caves 9796 | -5/Upper Caves | Entered another Upper Caves area 9818 | -5/Upper Caves | Discovered new exit (range 12) 9824 | -5/Upper Caves | Spotted B-75 Beast 9837 | -5/Upper Caves | Identified exit to Factory 9838 | -5/Upper Caves | Entered Factory 9838 | -4/Factory | Evolved 2 slots: Utility x2 9839 | -4/Factory | Identified exit to Research 10445 | -4/Factory | Build established: Scavenger-Gladiator 11036 | -4/Factory | Central database locked down 11296 | -4/Factory | Core integrity fell below 50% 11314 | -4/Factory | Core integrity fell below 20% 11321 | -4/Factory | System corruption reached 10% 11341 | -4/Factory | Destroyed by S-27 Virus with Autogun Last Messages --------------- 11324_ Companion Sword destroyed. Companion Sword: "Will you miss me?" 11324_ U-05 Engineer lays Concrete. 11326_ K-01 Serf collects debris. 11326_ U-05 Engineer lays Concrete. 11327_ U-05 Engineer destroyed. 11327_ Destroyed Wheel. 11327_ A-15 Conveyor calls for reinforcements. 11327_ ALERT: Hostile activity reported, dispatching reinforcements to area. 11327_ P-70 Sage destroyed. 11327_ U-05 Engineer lays Concrete. 11329_ K-01 Serf destroyed. 11329_ U-05 Engineer lays Concrete. 11333_ System corrupted: Energy discharge (-38). 11336_ K-01 Serf collects debris. 11336_ Destroyed Wheel. 11336_ K-01 Serf destroyed. 11338_ S-27 Virus destroyed. 11339_ U-05 Engineer lays Concrete. Map ----- +----------------------------------------------------+ | #??? "?" ]]?? #???????? | | #??# """ ]! #???????? | | +######+##### #??# ###?????? | | # # #??# """ """ + ??????? | | # = = # #??# """ """ #???????? | | # # #??# """ """ #???????? | | # """ """ # #??# #???????? | | # """ """ # #??# ! #???????? | | # """ """ # #??# #???????? | | # # #### ! % #???????? | | # # ######"###+###########??? | | ########### % #??? | | #?????????+ % #??? | | #?????????# *% + "? | | ###?????????# ! * #??? | | ????????????# #??? | | ????????????# #######; u #??? | | ????????????#^^ ## #??? | | ????????????#^^ ##""" u ???? | | ????????????# ##""" ????? | | ????????????# ##""" # [* ????? | | ????????????# T# #| ?????? | | ????????????# # #![ ?????? | | ????????????# ## [%[= ?????? | | ????????????# #### %!%s * ??????? | | ????????????# @|=*= ??????? | | ????????????# w [ ??????? | | ????????????+ ???????? | | ????????????# ???????? | | ????????????# ????????? | | ????????????##### #### ### /##### ###????????? | | ????????????????# ???# ?? ?????#??????????? | | ????????????????? ???# ??? ???????????????? | | ?????????????????????# ??? #??????????????? | | ?????????????????????# """ ???? #??????????????? | | ?????????????????????+ """ ???? #??????????????? | | ?????????????????????# """ ???? #??????????????? | | ?????????????????????# ??? ?????? #??????????????? | | ?????????????????????#???? ??????????????????????? | | ?????????????????????????? ??????????????????????? | | ?????????????????????????? ??????????????????????? | | ?????????????????????????????????????????????????? | | ?????????????????????????????????????????????????? | | ?????????????????????????????????????????????????? | | ?????????????????????????????????????????????????? | | ?????????????????????????????????????????????????? | | ?????????????????????????????????????????????????? | | ?????????????????????????????????????????????????? | | ?????????????????????????????????????????????????? | | ?????????????????????????????????????????????????? | +----------------------------------------------------+ Best States ------------- Heat Dissipation 43 Energy Generation 27 Energy Capacity 500 Matter Stores 300 Matter Capacity 300 Sight Range 16 Terrain Scan Range 14 Terrain Scan Density 10 Armor Coverage 675 Utility Shielding 33 Melee Speed Boost 50 Evasion (%) 55 Targeting Accuracy 6 Melee Accuracy 6 Armor Integrity Analysis 40 Recoil Reduction 4 Item Schematics ----------------- None Robot Schematics ------------------ None Fabricated ------------ Nothing Repaired ---------- Nothing Studied --------- Katana | -6/Factory | Hacked Imp. Grenade Launcher | -6/Factory | Hacked Great Maul | -4/Factory | Hacked Myomer Leg | -4/Factory | Hacked Alien Tech Used ----------------- None Achievements -------------- Ambidextrous Nice Directions, Buddy Challenges ------------ None Game ------ Seed LauncherDeliveryShell Manual? 0 Play Time 01:31:22 Cumulative 27.9 hours Start 2026.02.20 @ 12:29:02 End 2026.02.20 @ 14:11:18 Sessions 1 Manual Loads 0 Difficulty Rogue Special Mode None Game No. 32 Rogue 32 Adventurer 0 Explorer 0 Win Type - Total 0 Types 0/0/0/0/0/0/0/0/0/0 Lore% 36 Gallery% 29 Achievement% 23 Wizard Run 0 Options --------- Layout 1 ASCII 0 Keyboard 0 Movement Mouse Keybinds 0 Fullscreen 1 Font 24/Swanston Map View 50x35 Zoom Use 0% Tactical HUD 1 Map Filters NONE Filters NONE Steam 1 RUN: 2c790279-43b5-4190-8c52-c7df43da5182